fUSD/lending_fUSD_20250818
["ID","MTS","AMOUNT","RATE_DAILY","PERIOD"]
[380066093,1755526992347,-5012.48,0.00030136,120]
[380066094,1755526992389,-4644.07,0.00030136,120]
[380066095,1755526992431,-875.46,0.00030136,120]
[380066096,1755526992472,-400.0,0.00030136,120]
[380066097,1755526992513,-2964.42,0.00030136,120]
[380066098,1755526992552,-4170.57,0.00030136,120]
[380066099,1755526992593,-400.0,0.00030136,120]
[380066100,1755526992635,-1123.75,0.00030136,120]
[380066101,1755526992675,-413.61,0.00030136,120]
[380066102,1755526992715,-2147.85,0.00030136,120]
[380066103,1755526992754,-400.0,0.00030136,120]
[380066104,1755526992792,-400.0,0.00030136,120]
[380066105,1755526992832,-1489.31,0.00030136,120]
[380066106,1755526992874,-13141.49,0.00030136,120]
[380066107,1755526992916,-1225.97,0.00030136,120]
[380066108,1755526992960,-400.0,0.00030136,120]
[380066109,1755526993003,-400.0,0.00030136,120]
[380066110,1755526993051,-15463.3,0.00030136,120]
[380066111,1755526993094,-6617.66,0.00030136,120]
[380066112,1755526993136,-3551.32,0.00030136,120]
[380066113,1755526993179,-400.0,0.00030136,120]
[380066114,1755526993221,-400.0,0.00030136,120]
[380066115,1755526993264,-919.06,0.00030136,120]
[380066116,1755526993308,-5252.17,0.00030136,120]
[380066117,1755526993353,-6732.35,0.00030136,120]
[380066118,1755526993396,-400.0,0.00030136,120]
[380066119,1755526993440,-559.7,0.00030136,120]
[380066120,1755526993482,-1782.97,0.00030136,120]
[380066121,1755526993523,-400.0,0.00030136,120]
[380066122,1755526993566,-400.0,0.00030136,120]
[380066123,1755526993607,-1025.31,0.00030136,120]
[380066124,1755526993650,-400.0,0.00030136,120]
[380066125,1755526993689,-400.0,0.00030136,120]
[380066126,1755526993727,-400.0,0.00030136,120]
[380066127,1755526993765,-2514.66,0.00030136,120]
[380066128,1755526993803,-1422.64,0.00030136,120]
[380066129,1755526993841,-2862.18,0.00030136,120]
[380066130,1755526993882,-618.9,0.00030136,120]
[380066131,1755526993920,-4293.65,0.00030136,120]
[380066132,1755526993959,-607.3,0.00030136,120]
[380066133,1755526993999,-1700.86,0.00030136,120]
[380066134,1755526994040,-707.61,0.00030136,120]
[380066135,1755526994079,-6495.61,0.00030136,120]
[380066136,1755526994120,-400.0,0.00030136,120]
[380066137,1755526994161,-1020.45,0.00030136,120]
[380066138,1755526994203,-9846.23,0.00030136,120]
[380066139,1755526994245,-2221.99,0.00030136,120]
[380066140,1755526994289,-521.95,0.00030136,120]
[380066141,1755526994331,-2571.34,0.00030136,120]
[380066142,1755526994371,-1506.03,0.00030136,120]
[380066143,1755526994412,-400.0,0.00030136,120]
[380066144,1755526994462,-400.0,0.00030136,120]
[380066145,1755526994509,-440.08,0.00030136,120]
[380066146,1755526994549,-5585.81,0.00030136,120]
[380066147,1755526994594,-1917.4,0.00030136,120]
[380066148,1755526994639,-1678.2,0.00030136,120]
[380066149,1755526994697,-400.0,0.00030136,120]
[380066150,1755526994742,-596.07,0.00030136,120]
[380066151,1755526994782,-912.07,0.00030136,120]
[380066152,1755526994822,-2179.06,0.00030136,120]
[380066153,1755526994862,-1026.81,0.00030136,120]
[380066154,1755526994902,-4211.97,0.00030136,120]
[380066155,1755526994948,-5402.64,0.00030136,120]
[380066156,1755526994990,-400.0,0.00030136,120]
[380066157,1755526995032,-400.0,0.00030136,120]
[380066158,1755526995074,-400.0,0.00030136,120]
[380066159,1755526995121,-400.0,0.00030136,120]
[380066160,1755526995165,-436.69364381,0.00030136,120]
[380066161,1755526995208,-2322.79,0.00030136,120]
[380066162,1755526995254,-400.0,0.00030136,120]
[380066163,1755526995298,-409.22,0.00030136,120]
[380066164,1755526995341,-5330.26,0.00030136,120]
[380066165,1755526995386,-836.87,0.00030136,120]
[380066166,1755526995863,-400.0,0.00030136,120]
[380066167,1755526995906,-864.37,0.00030136,120]
[380066168,1755526995952,-453.05,0.00030136,120]
[380066169,1755526995993,-4376.24,0.00030136,120]
[380066170,1755526996035,-400.0,0.00030136,120]
[380066171,1755526996074,-878.67,0.00030136,120]
[380066172,1755526996116,-499.98,0.00030136,120]
[380066173,1755526996159,-1959.0,0.00030136,120]
[380066174,1755526996204,-11801.9,0.00030136,120]
[380066175,1755526996247,-485.31,0.00030136,120]
[380066176,1755526996291,-841.06,0.00030136,120]
[380066177,1755526996340,-14230.31,0.00030136,120]
[380066178,1755526996383,-3637.63,0.00030136,120]
[380066179,1755526996425,-954.26,0.00030136,120]
[380066180,1755526996466,-400.0,0.00030136,120]
[380066181,1755526996507,-5126.57,0.00030136,120]
[380066182,1755526996548,-400.0,0.00030136,120]
[380066183,1755526996587,-400.0,0.00030136,120]
[380066184,1755526996628,-5246.4,0.00030136,120]
[380066185,1755526996668,-538.04,0.00030136,120]
[380066186,1755526996710,-6822.1,0.00030136,120]
[380066187,1755526996748,-400.0,0.00030136,120]
[380066188,1755526996788,-400.0,0.00030136,120]
[380066189,1755526996828,-400.0,0.00030136,120]
[380066190,1755526996869,-4834.05,0.00030136,120]
[380066191,1755526996909,-402.03,0.00030136,120]
[380066192,1755526996948,-400.0,0.00030136,120]
[380066193,1755526996987,-400.0,0.00030136,120]
[380066194,1755526997026,-1021.05,0.00030136,120]
[380066195,1755526997065,-400.0,0.00030136,120]
[380066196,1755526997109,-400.0,0.00030136,120]
[380066197,1755526997154,-400.0,0.00030136,120]
[380066198,1755526997197,-400.0,0.00030136,120]
[380066199,1755526997242,-9783.04,0.00030136,120]
[380066200,1755526997289,-1510.18,0.00030136,120]
[380066201,1755526997334,-6316.33,0.00030136,120]
[380066202,1755526997377,-1350.98,0.00030136,120]
[380066203,1755526997419,-400.0,0.00030136,120]
[380066204,1755526997458,-400.0,0.00030136,120]
[380066205,1755526997497,-1869.67,0.00030136,120]
[380066206,1755526997534,-748.57,0.00030136,120]
[380066207,1755526997571,-400.0,0.00030136,120]
[380066208,1755526997609,-400.0,0.00030136,120]
[380066209,1755526997647,-607.61,0.00030136,120]
[380066210,1755526997685,-400.0,0.00030136,120]
[380066211,1755526997725,-4196.23,0.00030136,120]
[380066212,1755526997766,-400.0,0.00030136,120]
[380066213,1755526997806,-400.0,0.00030136,120]
[380066214,1755526997846,-1681.51,0.00030136,120]
[380066215,1755526997886,-400.0,0.00030136,120]
[380066216,1755526997930,-2839.86,0.00030136,120]
[380066217,1755526997975,-400.0,0.00030136,120]
[380066218,1755526998016,-810.43,0.00030136,120]
[380066219,1755526998060,-400.0,0.00030136,120]
[380066220,1755526998104,-4070.14,0.00030136,120]
[380066221,1755526998146,-5476.24,0.00030136,120]
[380066222,1755526998188,-1362.14,0.00030136,120]
[380066223,1755526998232,-400.0,0.00030136,120]
[380066224,1755526998277,-4575.85,0.00030136,120]
[380066225,1755526998320,-1078.91,0.00030136,120]
[380066226,1755526998367,-6334.98,0.00030136,120]
[380066227,1755526998409,-400.0,0.00030136,120]
[380066228,1755526998451,-3459.23,0.00030136,120]
[380066229,1755526998491,-487.71134418,0.00030136,120]
[380066230,1755526998533,-8879.66,0.00030136,120]
[380066231,1755526998572,-400.0,0.00030136,120]
[380066232,1755526998612,-5005.72,0.00030136,120]
[380066233,1755526998650,-400.0,0.00030136,120]
[380066234,1755526998690,-400.0,0.00030136,120]
[380066235,1755526998728,-400.0,0.00030136,120]
[380066236,1755526998768,-400.0,0.00030136,120]
[380066237,1755526998807,-4982.29,0.00030136,120]
[380066238,1755526998845,-400.0,0.00030136,120]
[380066239,1755526998888,-16429.94,0.00030136,120]
[380066240,1755526998929,-1117.46,0.00030136,120]
[380066241,1755526998979,-400.0,0.00030136,120]
[380066242,1755526999025,-3734.22,0.00030136,120]
[380066243,1755526999072,-474.01,0.00030136,120]
[380066244,1755526999117,-403.61,0.00030136,120]
[380066245,1755526999171,-291.35647762,0.00030136,120]
[380066246,1755526999220,-1590.4,0.00030136,120]
[380066247,1755526999272,-400.0,0.00030136,120]
[380066248,1755526999324,-4084.33,0.00030136,120]
[380066249,1755526999371,-4474.84,0.00030136,120]
[380066250,1755526999418,-11770.19,0.00030136,120]
[380066251,1755526999462,-2914.91,0.00030136,120]
[380066252,1755526999507,-400.0,0.00030136,120]
[380066253,1755526999551,-400.0,0.00030136,120]
[380066254,1755526999594,-400.0,0.00030136,120]
[380066255,1755526999635,-400.0,0.00030136,120]
[380066256,1755526999677,-3076.14,0.00030136,120]
[380066257,1755526999717,-1785.61,0.00030136,120]
[380066258,1755526999757,-400.0,0.00030136,120]
[380066259,1755526999798,-856.86,0.00030136,120]
[380066260,1755526999842,-400.0,0.00030136,120]
[380066261,1755527000153,-959.08,0.00030136,120]
[380066262,1755527000197,-6145.02,0.00030136,120]
[380066263,1755527000240,-801.15,0.00030136,120]
[380066264,1755527000283,-7604.74,0.00030136,120]
[380066265,1755527000324,-1068.49,0.00030136,120]
[380066266,1755527000365,-4797.29,0.00030136,120]
[380066267,1755527000405,-400.0,0.00030136,120]
[380066268,1755527000445,-2610.95,0.00030136,120]
[380066269,1755527000482,-400.0,0.00030136,120]
[380066270,1755527000519,-3880.38,0.00030136,120]
[380066271,1755527000557,-3159.74,0.00030136,120]
[380066272,1755527000595,-8529.61,0.00030136,120]
[380066273,1755527000632,-2378.24,0.00030136,120]
[380066274,1755527000670,-4281.01,0.00030136,120]
[380066275,1755527000708,-2431.85,0.00030136,120]
[380066276,1755527000747,-3909.14,0.00030136,120]
[380066277,1755527000788,-400.0,0.00030136,120]
[380066278,1755527000828,-491.16,0.00030136,120]
[380066279,1755527000870,-1296.61,0.00030136,120]
[380066280,1755527000911,-7115.35,0.00030136,120]
[380066281,1755527000953,-441.48,0.00030136,120]
[380066282,1755527000992,-5359.69,0.00030136,120]
[380066283,1755527001034,-2277.36,0.00030136,120]
[380066284,1755527001079,-4372.99,0.00030136,120]
[380066285,1755527001125,-3505.45,0.00030136,120]
[380066286,1755527001169,-6033.71,0.00030136,120]
[380066287,1755527001212,-1721.08,0.00030136,120]
[380066288,1755527001255,-3293.97,0.00030136,120]
[380066289,1755527001298,-400.0,0.00030136,120]
[380066290,1755527001343,-727.64,0.00030136,120]
[380066291,1755527001402,-2810.95,0.00030136,120]
[380066292,1755527001447,-400.0,0.00030136,120]
[380066293,1755527001491,-1811.54,0.00030136,120]
[380066294,1755527001534,-400.0,0.00030136,120]
[380066295,1755527001577,-4119.97,0.00030136,120]
[380066296,1755527001621,-1615.06,0.00030136,120]
[380066297,1755527001665,-966.11,0.00030136,120]
[380066298,1755527001707,-400.0,0.00030136,120]
[380066299,1755527001750,-7221.04,0.00030136,120]
[380066300,1755527001793,-400.0,0.00030136,120]
[380066301,1755527001836,-2045.32,0.00030136,120]
[380066302,1755527001879,-400.0,0.00030136,120]
[380066303,1755527001922,-400.0,0.00030136,120]
[380066304,1755527001967,-400.0,0.00030136,120]
[380066305,1755527002012,-7080.67,0.00030136,120]
[380066306,1755527002057,-8130.12,0.00030136,120]
[380066307,1755527002103,-400.0,0.00030136,120]
[380066308,1755527002148,-400.0,0.00030136,120]
[380066309,1755527002193,-400.0,0.00030136,120]
[380066310,1755527002240,-400.0,0.00030136,120]
[380066311,1755527002285,-400.0,0.00030136,120]
[380066312,1755527002331,-888.26,0.00030136,120]
[380066313,1755527002376,-4822.58,0.00030136,120]
[380066314,1755527002420,-400.0,0.00030136,120]
[380066315,1755527002464,-17833.68,0.00030136,120]
[380066316,1755527002504,-4743.47,0.00030136,120]
[380066317,1755527002544,-400.0,0.00030136,120]
[380066318,1755527002582,-400.0,0.00030136,120]
[380066319,1755527002646,-400.0,0.00030136,120]
[380066320,1755527002969,-691.33,0.00030136,120]
[380066321,1755527003369,-1249.67,0.00030136,120]
[380066322,1755527003727,-771.79,0.00030136,120]
[380066323,1755527003997,-400.0,0.00030136,120]
[380066324,1755527004044,-1385.85,0.00030136,120]
[380066325,1755527004093,-8231.81,0.00030136,120]
[380066326,1755527004169,-1389.68,0.00030136,120]
[380066327,1755527004216,-400.0,0.00030136,120]
[380066328,1755527004262,-2190.3,0.00030136,120]
[380066329,1755527004307,-1645.04,0.00030136,120]
[380066330,1755527004348,-2382.77,0.00030136,120]
[380066331,1755527004391,-2669.33,0.00030136,120]
[380066332,1755527004434,-3922.66,0.00030136,120]
[380066333,1755527004478,-3143.94,0.00030136,120]
[380066334,1755527004519,-405.37064739,0.00030136,120]
[380066335,1755527004565,-1049.8,0.00030136,120]
[380066336,1755527004611,-3064.26,0.00030136,120]
[380066337,1755527004657,-400.0,0.00030136,120]
[380066338,1755527004701,-2542.49,0.00030136,120]
[380066339,1755527004743,-3469.5,0.00030136,120]
[380066340,1755527004782,-3518.21,0.00030136,120]
[380066341,1755527004820,-11139.58,0.00030136,120]
[380066342,1755527004858,-400.0,0.00030136,120]
[380066343,1755527004896,-400.0,0.00030136,120]
[380066344,1755527004934,-400.0,0.00030136,120]
[380066345,1755527004974,-400.0,0.00030136,120]
[380066346,1755527005012,-4100.83,0.00030136,120]
[380066347,1755527005052,-1159.12,0.00030136,120]
[380066348,1755527005091,-400.0,0.00030136,120]
[380066349,1755527005130,-8148.42,0.00030136,120]
[380066350,1755527005171,-1279.03,0.00030136,120]
[380066351,1755527005213,-883.99,0.00030136,120]
[380066352,1755527005259,-2122.67,0.00030136,120]
[380066353,1755527005307,-4827.3,0.00030136,120]
[380066354,1755527005355,-400.0,0.00030136,120]
[380066355,1755527005403,-4601.21,0.00030136,120]
[380066356,1755527005730,-9036.25,0.00030136,120]
[380066357,1755527005775,-4622.05,0.00030136,120]
[380066358,1755527005820,-9529.53,0.00030136,120]
[380066359,1755527005863,-400.0,0.00030136,120]
[380066360,1755527005907,-1024.17,0.00030136,120]
[380066361,1755527005951,-483.57,0.00030136,120]
[380066362,1755527005994,-400.0,0.00030136,120]
[380066363,1755527006035,-400.0,0.00030136,120]
[380066364,1755527006078,-748.51,0.00030136,120]
[380066365,1755527006121,-585.29,0.00030136,120]
[380066366,1755527006164,-400.0,0.00030136,120]
[380066367,1755527006206,-400.0,0.00030136,120]
[380066368,1755527006251,-10328.29,0.00030136,120]
[380066369,1755527006297,-401.93423166,0.00030136,120]
[380066370,1755527006345,-5198.63,0.00030136,120]
[380066371,1755527006391,-4814.97,0.00030136,120]
[380066372,1755527006432,-400.0,0.00030136,120]
[380066373,1755527006473,-400.0,0.00030136,120]
[380066374,1755527006514,-2077.95,0.00030136,120]
[380066375,1755527006561,-400.0,0.00030136,120]
[380066376,1755527006607,-3998.36,0.00030136,120]
[380066377,1755527006649,-2387.63,0.00030136,120]
[380066378,1755527006689,-400.0,0.00030136,120]
[380066379,1755527006727,-742.25,0.00030136,120]
[380066380,1755527006765,-7610.09,0.00030136,120]
[380066381,1755527006803,-3960.75,0.00030136,120]
[380066382,1755527006844,-400.0,0.00030136,120]
[380066383,1755527006887,-4759.33,0.00030136,120]
[380066384,1755527006929,-1347.55,0.00030136,120]
[380066385,1755527006973,-757.73,0.00030136,120]
[380066386,1755527007012,-3137.16,0.00030136,120]
[380066387,1755527007054,-3383.34,0.00030136,120]
[380066388,1755527007094,-1081.47,0.00030136,120]
[380066389,1755527007134,-400.0,0.00030136,120]
[380066390,1755527007173,-2536.47,0.00030136,120]
[380066391,1755527007214,-1623.22,0.00030136,120]
[380066392,1755527007256,-500.0,0.00030136,120]
[380066393,1755527007299,-3073.85,0.00030136,120]
[380066394,1755527007342,-400.0,0.00030136,120]
[380066395,1755527007388,-400.0,0.00030136,120]
[380066396,1755527007432,-400.0,0.00030136,120]
[380066397,1755527007477,-10555.37,0.00030136,120]
[380066398,1755527007519,-400.0,0.00030136,120]
[380066399,1755527007559,-400.0,0.00030136,120]
[380066400,1755527007599,-400.0,0.00030136,120]
[380066401,1755527007637,-468.49,0.00030136,120]
[380066402,1755527007674,-7656.98,0.00030136,120]
[380066403,1755527007711,-3189.78,0.00030136,120]
[380066404,1755527007748,-1602.95,0.00030136,120]
[380066405,1755527007785,-1149.23,0.00030136,120]
[380066406,1755527007822,-1350.0,0.00030136,120]
[380066407,1755527007861,-400.0,0.00030136,120]
[380066408,1755527007902,-154.41704113,0.00030136,120]
[380066409,1755527007948,-512.69,0.00030136,120]
[380066410,1755527007988,-400.0,0.00030136,120]
[380066411,1755527008027,-6215.49,0.00030136,120]
[380066412,1755527008066,-4469.29,0.00030136,120]
[380066413,1755527008106,-3556.22,0.00030136,120]
[380066414,1755527008148,-413.9,0.00030136,120]
[380066415,1755527008191,-864.33,0.00030136,120]
[380066416,1755527008234,-699.14,0.00030136,120]
[380066417,1755527008276,-400.31738291,0.00030136,120]
[380066418,1755527008319,-400.0,0.00030136,120]
[380066419,1755527008361,-1086.24,0.00030136,120]
[380066420,1755527008403,-400.0,0.00030136,120]
[380066421,1755527008444,-997.48,0.00030136,120]
[380066422,1755527008481,-403.67945441,0.00030136,120]
[380066423,1755527008520,-400.0,0.00030136,120]
[380066424,1755527008557,-400.0,0.00030136,120]
[380066425,1755527008596,-403.05441988,0.00030136,120]
[380066426,1755527008645,-2388.29,0.00030136,120]
[380066427,1755527008689,-30364.8,0.00030136,120]
[380066428,1755527008728,-400.0,0.00030136,120]
[380066429,1755527008768,-1705.89,0.00030136,120]
[380066430,1755527008809,-1293.36,0.00030136,120]
[380066431,1755527008848,-400.0,0.00030136,120]
[380066432,1755527008885,-400.0,0.00030136,120]
[380066433,1755527008922,-400.0,0.00030136,120]
[380066434,1755527008963,-400.0,0.00030136,120]
[380066435,1755527009006,-9745.76,0.00030136,120]
[380066436,1755527009052,-1016.72,0.00030136,120]
[380066437,1755527009094,-3897.5,0.00030136,120]
[380066438,1755527009136,-781.89,0.00030136,120]
[380066439,1755527009177,-2466.38,0.00030136,120]
[380066440,1755527009219,-400.0,0.00030136,120]
[380066441,1755527009263,-400.0,0.00030136,120]
[380066442,1755527009306,-400.0,0.00030136,120]
[380066443,1755527009349,-400.0,0.00030136,120]
[380066444,1755527009400,-14866.15,0.00030136,120]
[380066445,1755527009447,-400.0,0.00030136,120]
[380066446,1755527009492,-1862.91,0.00030136,120]
[380066447,1755527009535,-3762.54,0.00030136,120]
[380066448,1755527009579,-400.0,0.00030136,120]
[380066449,1755527009632,-400.0,0.00030136,120]
[380066450,1755527009950,-400.0,0.00030136,120]
[380066451,1755527009993,-400.0,0.00030136,120]
[380066452,1755527010036,-500.0,0.00030136,120]
[380066453,1755527010077,-400.0,0.00030136,120]
[380066454,1755527010120,-2088.01,0.00030136,120]
[380066455,1755527010164,-500.0,0.00030136,120]
[380066456,1755527010210,-11732.69,0.00030136,120]
[380066457,1755527010259,-500.0,0.00030136,120]
[380066458,1755527010304,-500.0,0.00030136,120]
[380066459,1755527010351,-401.397013,0.00030136,120]
[380066460,1755527010397,-500.0,0.00030136,120]
[380066461,1755527010440,-400.0,0.00030136,120]
[380066462,1755527010486,-500.0,0.00030136,120]
[380066463,1755527010526,-500.0,0.00030136,120]
[380066464,1755527010563,-428.54,0.00030136,120]
[380066465,1755527010603,-6803.14,0.00030136,120]
[380066466,1755527010642,-500.0,0.00030136,120]
[380066467,1755527010679,-500.0,0.00030136,120]
[380066468,1755527010716,-500.0,0.00030136,120]
[380066469,1755527010754,-400.0,0.00030136,120]
[380066470,1755527010791,-500.0,0.00030136,120]
[380066471,1755527010827,-500.0,0.00030136,120]
[380066472,1755527010863,-500.0,0.00030136,120]
[380066473,1755527010900,-400.0,0.00030136,120]
[380066474,1755527010939,-500.0,0.00030136,120]
[380066475,1755527010981,-400.0,0.00030136,120]
[380066476,1755527011017,-400.0,0.00030136,120]
[380066477,1755527011056,-366.90565551,0.00030136,120]
[380066478,1755527011096,-400.0,0.00030136,120]
[380066479,1755527011137,-400.0,0.00030136,120]
[380066480,1755527011179,-4629.38,0.00030136,120]
[380066481,1755527011221,-400.0,0.00030136,120]
[380066482,1755527011265,-876.84,0.00030136,120]
[380066483,1755527011308,-414.49,0.00030136,120]
[380066484,1755527011352,-5180.93,0.00030136,120]
[380066485,1755527011395,-688.35,0.00030136,120]
[380066486,1755527011435,-400.0,0.00030136,120]
[380066487,1755527011481,-725.83,0.00030136,120]
[380066488,1755527011526,-400.0,0.00030136,120]
[380066489,1755527011573,-28618.32,0.00030136,120]
[380066490,1755527011637,-1216.77,0.00030136,120]
[380066491,1755527011682,-400.0,0.00030136,120]
[380066492,1755527011731,-4304.51,0.00030136,120]
[380066493,1755527011780,-416.09,0.00030136,120]
[380066494,1755527011829,-3694.73,0.00030136,120]
[380066495,1755527011870,-1948.47,0.00030136,120]
[380066496,1755527011910,-13187.88,0.00030136,120]
[380066497,1755527011951,-400.0,0.00030136,120]
[380066498,1755527011993,-1185.25,0.00030136,120]
[380066499,1755527012034,-992.32,0.00030136,120]
[380066500,1755527012079,-400.0,0.00030136,120]
[380066501,1755527012125,-400.0,0.00030136,120]
[380066502,1755527012171,-400.0,0.00030136,120]
[380066503,1755527012215,-400.0,0.00030136,120]
[380066504,1755527012258,-2457.1,0.00030136,120]
[380066505,1755527012304,-3660.9,0.00030136,120]
[380066506,1755527012351,-400.0,0.00030136,120]
[380066507,1755527012395,-400.0,0.00030136,120]
[380066508,1755527012437,-1229.67,0.00030136,120]
[380066509,1755527012478,-400.0,0.00030136,120]
[380066510,1755527012519,-1750.89,0.00030136,120]
[380066511,1755527012557,-400.0,0.00030136,120]
[380066512,1755527012593,-400.0,0.00030136,120]
[380066513,1755527012632,-400.0,0.00030136,120]
[380066514,1755527012668,-400.0,0.00030136,120]
[380066515,1755527012706,-1765.55,0.00030136,120]
[380066516,1755527012742,-400.0,0.00030136,120]
[380066517,1755527012783,-4641.69,0.00030136,120]
[380066518,1755527012819,-1067.03,0.00030136,120]
[380066519,1755527012856,-400.0,0.00030136,120]
[380066520,1755527012892,-1730.74,0.00030136,120]
[380066521,1755527012932,-3027.9,0.00030136,120]
[380066522,1755527012974,-537.2,0.00030136,120]
[380066523,1755527013011,-400.0,0.00030136,120]
[380066524,1755527013052,-1084.34,0.00030136,120]
[380066525,1755527013095,-400.0,0.00030136,120]
[380066526,1755527013142,-400.0,0.00030136,120]
[380066527,1755527013194,-3366.42,0.00030136,120]
[380066528,1755527013240,-2673.82,0.00030136,120]
[380066529,1755527013285,-4621.28,0.00030136,120]
[380066530,1755527013332,-1415.04,0.00030136,120]
[380066531,1755527013377,-2738.83,0.00030136,120]
[380066532,1755527013423,-4878.24,0.00030136,120]
[380066533,1755527013468,-763.72,0.00030136,120]
[380066534,1755527013511,-400.0,0.00030136,120]
[380066535,1755527013554,-2188.35,0.00030136,120]
[380066536,1755527013597,-3301.12,0.00030136,120]
[380066537,1755527013641,-646.96,0.00030136,120]
[380066538,1755527013686,-400.0,0.00030136,120]
[380066539,1755527013740,-1331.26,0.00030136,120]
[380066540,1755527013782,-400.0,0.00030136,120]
[380066541,1755527013824,-400.0,0.00030136,120]
[380066542,1755527013869,-400.85298771,0.00030136,120]
[380066543,1755527013911,-1125.75,0.00030136,120]
[380066544,1755527014250,-400.0,0.00030136,120]
[380066545,1755527014297,-846.6,0.00030136,120]
[380066546,1755527014346,-400.0,0.00030136,120]
[380066547,1755527014395,-771.24,0.00030136,120]
[380066548,1755527014442,-7027.3,0.00030136,120]
[380066549,1755527014490,-715.55,0.00030136,120]
[380066550,1755527014552,-7463.85,0.00030136,120]
[380066551,1755527014603,-2270.57,0.00030136,120]
[380066552,1755527014652,-400.0,0.00030136,120]
[380066553,1755527014699,-4462.91,0.00030136,120]
[380066554,1755527014744,-1037.72,0.00030136,120]
[380066555,1755527014789,-488.05,0.00030136,120]
[380066556,1755527014835,-4984.49,0.00030136,120]
[380066557,1755527014884,-432.08,0.00030136,120]
[380066558,1755527014936,-1504.62,0.00030136,120]
[380066559,1755527014987,-400.0,0.00030136,120]
[380066560,1755527015036,-400.0,0.00030136,120]
[380066561,1755527015085,-645.71,0.00030136,120]
[380066562,1755527015135,-400.0,0.00030136,120]
[380066563,1755527015185,-4388.45,0.00030136,120]
[380066564,1755527015233,-4313.87,0.00030136,120]
[380066565,1755527015282,-2538.48,0.00030136,120]
[380066566,1755527015331,-400.0,0.00030136,120]
[380066567,1755527015380,-807.34,0.00030136,120]
[380066568,1755527015430,-4637.13,0.00030136,120]
[380066569,1755527015480,-13899.96,0.00030136,120]
[380066570,1755527015529,-400.0,0.00030136,120]
[380066571,1755527015594,-400.0,0.00030136,120]
[380066572,1755527015641,-400.0,0.00030136,120]
[380066573,1755527015686,-2805.94,0.00030136,120]
[380066574,1755527015732,-400.0,0.00030136,120]
[380066575,1755527015785,-400.0,0.00030136,120]
[380066576,1755527015829,-400.0,0.00030136,120]
[380066577,1755527015876,-1007.15,0.00030136,120]
[380066578,1755527015922,-400.0,0.00030136,120]
[380066579,1755527015975,-4166.96,0.00030136,120]
[380066580,1755527016032,-15287.12,0.00030136,120]
[380066581,1755527016082,-400.0,0.00030136,120]
[380066582,1755527016130,-623.83,0.00030136,120]
[380066583,1755527016180,-4619.26,0.00030136,120]
[380066584,1755527016231,-3276.73,0.00030136,120]
[380066585,1755527016280,-400.0,0.00030136,120]
[380066586,1755527016332,-400.0,0.00030136,120]
[380066587,1755527016381,-1684.59,0.00030136,120]
[380066588,1755527016430,-2659.53,0.00030136,120]
[380066589,1755527016477,-2515.82,0.00030136,120]
[380066590,1755527016523,-500.0,0.00030136,120]
[380066591,1755527016568,-1284.76,0.00030136,120]
[380066592,1755527016614,-400.0,0.00030136,120]